Cogmind - Beta 14 @@@ ROGUE MODE // 2024.09.09 @ 15:50:56 Player: Dull Result: Destroyed by Y-54 Guardian with Gatling Laser Performance ------------- Evolutions (3) 1500 Regions Visited (7) 1400 Robots Destroyed (75) 375 Value Destroyed (1981) 1981 Prototype IDs (4) 80 Alien Tech Used (0) 0 Bonus (1066) 1066 TOTAL SCORE: 6402 Bonus ------- High Alert Combat Kills 35 Follower Combat Kills 1152 Aligned with FarCom 300 Friendly Fire -421 Cogmind --------- Core Integrity 0/700 Matter 101/300 Energy 80/100 System Corruption 7% Temperature Cool (92) Movement Core (150) Ox2 Location -7/Storage Parts ------- > --- POWER (1) -------- (None) > --- PROPULSION (3) --- (None) > --- UTILITY (7) ------ Large Storage Unit Weight Redist. System > --- WEAPON (2) ------- Gauss Rifle > --- INVENTORY (15) --- Carbon-fiber Leg Carbon-fiber Leg Carbon-fiber Leg Carbon-fiber Leg Carbon-fiber Leg Improved Titanium Leg System Restoration Module Shock Rifle Heavy Rocket Launcher Heavy Rocket Launcher Peak State ------------ > --- POWER ------------ Deuterium Engine > --- PROPULSION ------- Carbon-fiber Leg Carbon-fiber Leg Carbon-fiber Leg > --- UTILITY ---------- Large Storage Unit Army-in-a-Box > --- WEAPON ----------- Ion Cannon Heavy Rocket Launcher > --- INVENTORY -------- Light Deuterium Engine Carbon-fiber Leg Carbon-fiber Leg Carbon-fiber Leg Improved Light Armor Plating Hacking Suite Shock Rifle Ion Cannon Minigun Minigun Minigun Flak Gun Heavy Rocket Launcher Heavy Rocket Launcher Improved Datajack [Rating: 78] Favorites ----------- Power Light Ion Engine Engine Light Ion Engine Power Core Nuclear Core Propulsion Aluminum Leg Treads Light Treads Leg Aluminum Leg Wheel Wheel Utility Large Storage Unit Device Army-in-a-Box Storage Large Storage Unit Hackware System Shield Protection Hardened Medium Armor Plating Weapon Ion Cannon Energy Gun EM Pulse Gun Energy Cannon Ion Cannon Ballistic Gun Minigun Ballistic Cannon Light Cannon Launcher Rocket Launcher Special Weapon Mining Laser Impact Weapon Heavy Hammer Slashing Weapon Scythe Piercing Weapon Spear Special Melee Weapon Improved Datajack Build | -11 -10 -10 -10 -9 -8 -7 -7 ------- Run | Yrd Mat Min Exi Min Mat Fac Sto Slots Evolved 6 | . . . . . 4 2 . Power . | . . . . . . . . Propulsion 1 | . . . . . . 1 . Utility 5 | . . . . . 4 1 . Weapon . | . . . . . . . . Parts Attached 127 | 2 13 11 5 . 55 23 18 Power 10 | . 1 2 . . 4 2 1 Engine 9 | . 1 2 . . 3 2 1 Core 1 | . . . . . 1 . . Reactor . | . . . . . . . . Propulsion 37 | 2 2 5 1 . 14 10 3 Treads 8 | . . . . . 1 7 . Leg 25 | . 2 5 1 . 11 3 3 Wheel 4 | 2 . . . . 2 . . Hover . | . . . . . . . . Flight . | . . . . . . . . Utility 34 | . 4 2 2 . 18 1 7 Device 21 | . 2 2 1 . 10 1 5 Storage 4 | . 2 . 1 . 1 . . Processor . | . . . . . . . . Hackware 2 | . . . . . 1 . 1 Protection 7 | . . . . . 6 . 1 Artifact . | . . . . . . . . Weapon 46 | . 6 2 2 . 19 10 7 Energy Gun 2 | . 2 . . . . . . Energy Cannon 3 | . 1 . . . 1 1 . Ballistic Gun 15 | . . . . . 9 . 6 Ballistic Cannon 2 | . . 1 . . 1 . . Launcher 11 | . 1 1 1 . 5 2 1 Special Weapon 5 | . 1 . 1 . 1 2 . Impact Weapon 3 | . . . . . . 3 . Slashing Weapon 2 | . . . . . 2 . . Piercing Weapon 1 | . . . . . . 1 . Special Melee Weapon 2 | . 1 . . . . 1 . Unidentified Prototypes 4 | . . 2 . . 1 1 . Corrupted Parts 1 | . . . . . . 1 . System Corruption 4 | . . . . . . 4 . Parts Lost 42 | . 2 . . . 22 4 14 Power 4 | . . . . . 1 1 2 Propulsion 8 | . . . . . 4 1 3 Utility 16 | . 1 . . . 11 . 4 Weapon 14 | . 1 . . . 6 2 5 Highest Loss Streak 14 | . 1 . . . 8 3 14 To Critical Strikes . | . . . . . . . . Average Slot Usage (%) 75 | . 87 99 87 100 72 60 69 Engine 8 | . 13 14 14 14 5 6 6 Treads 5 | . . . . . 1 15 . Leg 15 | . 21 28 28 28 12 6 21 Device 12 | . 3 13 14 14 19 7 6 Storage 9 | . 14 14 14 14 9 7 7 Hackware 1 | . . . . . 4 . 5 Protection 2 | . . . . . 7 . 4 Energy Gun 1 | . 18 . . . . . . Energy Cannon 3 | . . 13 . . 1 4 1 Ballistic Gun 2 | . . . . . 4 2 11 Ballistic Cannon 2 | . . 14 . . . . . Launcher 3 | . 4 . 8 14 3 1 1 Special Weapon 2 | . 3 . 7 14 1 2 . Peak Build Rating 78 | 6 9 18 20 20 32 78 78 Average Rating 35 | 6 7 13 17 20 23 72 36 On Entrance 23 | 6 6 9 18 20 20 30 78 Naked Turns . | . . . . . . . . Heaviest Build 122 | 12 29 39 38 38 50 122 122 Greatest Support 66 | 26 26 26 20 20 34 62 66 Greatest Overweight (x) 14 | . 8 1 1 1 14 7 2 Average Overweight (x) 1 | . . 1 1 1 1 1 . Largest Inventory Capacity 15 | 8 15 15 15 15 15 15 15 Average Capacity 14 | 8 14 15 15 15 15 15 15 Most Carried 15 | 6 15 15 15 15 15 15 15 Average Carried 13 | 6 11 14 14 15 12 13 13 Final Capacity 15 | 8 15 15 15 15 15 15 15 Final Carried 15 | 6 15 15 15 15 14 15 10 Class Distribution -------------------- 78% | Mutant 5% | Scavenger-Mutant 5% | Skirmisher 4% | Scavenger-Assassin 4% | Scavenger-Skirmisher Dominant Class ---------------- Mutant | -10/Materials Mutant | -10/Mines Mutant | -10/Exiles Mutant | -9/Mines Mutant | -8/Materials Mutant | -7/Factory Mutant | -7/Storage Resources | -11 -10 -10 -10 -9 -8 -7 -7 ----------- Run | Yrd Mat Min Exi Min Mat Fac Sto Matter Collected 2494 | 220 267 214 . 122 998 458 215 Remotely . | . . . . . . . . Salvage Created 2028 | . 372 326 . 122 837 24 347 Parts 130 | . 23 21 . 10 52 5 19 Haulers Intercepted 3 | . 1 . . . 1 . 1 Recyclers Shooed 3 | . . . . 1 . 1 1 Parts Field Recycled 13 | . . . . . 13 . . Retrieved Matter 31 | . . . . . 31 . . Parts Self-Destructed . | . . . . . . . . Prevented . | . . . . . . . . Kills | -11 -10 -10 -10 -9 -8 -7 -7 ------- Run | Yrd Mat Min Exi Min Mat Fac Sto Combat Hostiles Destroyed 46 | . 6 9 . 6 18 . 7 Guns 10 | . 4 . . . 3 . 3 Cannons 11 | . . 9 . . 2 . . AOE 25 | . 2 . . 6 13 . 4 Classes Destroyed 11 | . 6 1 . . 3 1 . Worker 8 | . 1 1 . . 6 . . Builder 10 | . 1 . . 3 4 2 . Hauler 3 | . 1 . . . 1 . 1 Recycler 6 | . 2 1 . . 2 . 1 Operator 1 | . . . . . 1 . . Drone 2 | . . . . . . 2 . Watcher 1 | . 1 . . . . . . Swarmer 10 | . . 5 . . 5 . . Grunt 31 | . 6 4 . 6 10 . 5 Sentry 2 | . . . . . 2 . . Hunter 3 | . . . . . 1 . 2 Best Kill Streak 8 | . 4 4 . 7 8 2 5 Combat Bots Only 5 | . 2 3 . 4 5 . 4 Max Kills in Single Turn 4 | . 2 1 . 2 4 2 3 Gunslinging 1 | . 1 . . . . . . Exploded 2 | . 1 . . 1 2 . 2 Melee . | . . . . . . . . Uniques/NPCs Destroyed . | . . . . . . . . Combat | -11 -10 -10 -10 -9 -8 -7 -7 -------- Run | Yrd Mat Min Exi Min Mat Fac Sto Hostile Shots Fired 542 | . 30 33 . 14 126 61 278 Missed 165 | . 5 9 . 5 43 20 83 Damage Taken 6928 | . 399 286 . 136 2410 1606 2091 Core 1343 | . 110 31 . 11 485 270 436 Absorbed by Shields . | . . . . . . . . Redirected to Shielding 45 | . . . . . 45 . . Regen/Repaired (Parts) 108 | . 22 . . . 86 . . Core Remaining (%) 50 | 100 . . . 39 11 . . Volleys Fired 183 | . 40 21 . 14 63 16 29 Largest 2 | . 2 2 . 1 2 2 2 Hottest 100 | . 100 95 . 33 100 99 53 Shots Fired 263 | . 55 42 . 15 78 21 52 Gun 123 | . 38 . . . 35 . 50 Cannon 68 | . 5 42 . . 7 14 . Launcher 61 | . 10 . . 15 30 4 2 Special 11 | . 2 . . . 6 3 . Kinetic 111 | . . 22 . . 39 . 50 Thermal 73 | . 30 20 . . 9 14 . Explosive 61 | . 10 . . 15 30 4 2 Electromagnetic 15 | . 15 . . . . . . Robot Hit Streak 14 | . 4 9 . 4 9 2 14 Robot Miss Streak 8 | . 2 3 . 2 2 2 8 Penetration Max 1 | . . . . . 1 . . Secondary Targets 1 | . 1 . . . . . . Max Gunslinging Chain 1 | . 1 . . . . . . Shots Hit Robots 168 | . 37 22 . 10 55 8 36 Core Hits 130 | . 23 11 . 15 51 5 25 Critical Kills . | . . . . . . . . Critical Parts Destroyed . | . . . . . . . . Critical Strikes 2 | . . 1 . . 1 . . Blast 2 | . . 1 . . 1 . . Melee Attacks 24 | . 4 . . . 12 8 . Impact . | . . . . . . . . Slashing 12 | . . . . . 12 . . Piercing 8 | . . . . . . 8 . Sneak Attacks 7 | . 1 . . . 5 1 . Combat Hostiles . | . . . . . . . . Follow-up Attacks . | . . . . . . . . Damage Inflicted 6313 | . 823 408 . 945 2540 644 953 Guns 1266 | . 290 . . . 440 . 536 Cannons 674 | . 71 408 . . 117 78 . Explosions 3906 | . 462 . . 945 1618 478 403 Melee 411 | . . . . . 340 71 . Ramming 56 | . . . . . 25 17 14 Kinetic 1264 | . . 216 . . 512 . 536 Thermal 573 | . 258 192 . . 45 78 . Explosive 3906 | . 462 . . 945 1618 478 403 Electromagnetic 103 | . 103 . . . . . . Impact . | . . . . . . . . Slashing 340 | . . . . . 340 . . Piercing 71 | . . . . . . 71 . Highest Corruption 20 | . 2 2 2 2 5 20 20 Average Corruption 5 | . 2 2 2 2 5 8 16 Corruption Purged 13 | . . . . . . . 13 Corruption Blocked . | . . . . . . . . Effects 162 | . 10 15 4 7 50 63 13 Message Errors 45 | . 2 4 . 1 14 17 7 Matter Fused 42 | . 4 5 2 3 13 14 1 Heat Flow Errors 26 | . 3 1 1 1 10 9 1 Energy Discharges 17 | . . 1 . . 7 8 1 Parts Rejected 3 | . . . . . 3 . . Parts Fused 3 | . . . 1 . . 2 . Data Loss (minor) 13 | . 1 1 . 1 3 6 1 Data Loss (major) 4 | . . . . . . 3 1 Misfires 6 | . . 1 . 1 . 3 1 Alerts 2 | . . 1 . . . 1 . Weapon Failures 1 | . . 1 . . . . . Overload Shots . | . . . . . . . . Overflow Damage 191 | . 1 . . 37 45 77 31 Projectiles 9 | . . . . . . 9 . Explosions 127 | . 1 . . 37 21 37 31 Melee 55 | . . . . . 24 31 . Knockbacks 2 | . . 1 . . . 1 . Impact 1 | . . . . . . 1 . Kinetic 1 | . . 1 . . . . . Secondary . | . . . . . . . . Self-Inflicted Damage 543 | . 80 . . 23 136 179 125 Shots 14 | . 3 . . 1 4 4 2 Rammed 4 | . . . . . 1 3 . Targets Rammed 13 | . . . . . 6 4 3 Kicked 9 | . . . . . 5 1 3 Crushed . | . . . . . . . . Highest Temperature 324 | . 275 324 210 97 252 264 195 Average Temperature 79 | . 72 102 114 20 74 98 35 Received Heat Transfer 1227 | . 198 114 . 60 135 54 666 Siege Activations . | . . . . . . . . Robots Corrupted . | . . . . . . . . Combat Hostiles . | . . . . . . . . Parts Fried . | . . . . . . . . Impact Corruptions . | . . . . . . . . Robots Melted . | . . . . . . . . Combat Hostiles . | . . . . . . . . Parts Melted . | . . . . . . . . Heat Transferred 1165 | . 573 407 . . 74 111 . Parts Sabotaged . | . . . . . . . . Parts Stolen . | . . . . . . . . Parts Stripped . | . . . . . . . . Power Chain Reactions . | . . . . . . . . Alert | -11 -10 -10 -10 -9 -8 -7 -7 ------- Run | Yrd Mat Min Exi Min Mat Fac Sto Peak Influence 825 | . 166 145 . 268 448 825 431 Initial 356 | . . 64 . . 104 59 356 Average 274 | . 68 88 . 124 243 457 365 Maximum Alert Level 3 | . . . . 1 2 3 2 Low Security (%) 46 | 100 100 100 . 75 44 10 . Level 1 36 | . . . . 24 48 44 95 Level 2 4 | . . . . . 6 6 4 Level 3 12 | . . . . . . 38 . Level 4 . | . . . . . . . . Level 5 . | . . . . . . . . High Security . | . . . . . . . . Max Security . | . . . . . . . . Squads Dispatched 27 | . 1 . . 1 6 16 3 Investigation 5 | . . . . . 3 1 1 Extermination 5 | . . . . . . 5 . Reinforcement 9 | . 1 . . 1 3 3 1 Assault 3 | . . . . . . 3 . Garrison 5 | . . . . . . 4 1 Intercept . | . . . . . . . . Searches Triggered . | . . . . . . . . Construction Impeded 5 | . . . . 1 1 3 . Haulers Reinforced 1 | . . . . . . . 1 Active Scanning Responses . | . . . . . . . . Cargo Convoy Interrupts . | . . . . . . . . Stealth | -11 -10 -10 -10 -9 -8 -7 -7 --------- Run | Yrd Mat Min Exi Min Mat Fac Sto Distress Signals 9 | . 2 . . . 4 3 . Communications Jammed . | . . . . . . . . Distress Signals . | . . . . . . . . Times Spotted 95 | . 15 12 . 7 29 23 9 Peak Tracking Total 9 | . 3 3 . 2 9 4 6 Tactical Retreats 13 | . . 1 . 1 9 2 . Traps | -11 -10 -10 -10 -9 -8 -7 -7 ------- Run | Yrd Mat Min Exi Min Mat Fac Sto Traps Triggered 5 | . 1 . . . . 3 1 Indirectly . | . . . . . . . . Trap Hack Attempts . | . . . . . . . . Triggered . | . . . . . . . . Disarmed . | . . . . . . . . Reprogrammed . | . . . . . . . . Reused . | . . . . . . . . Traps Extracted . | . . . . . . . . Installed . | . . . . . . . . Triggered . | . . . . . . . . Machines | -11 -10 -10 -10 -9 -8 -7 -7 ---------- Run | Yrd Mat Min Exi Min Mat Fac Sto Machines Disabled 10 | . 1 . . . 5 3 1 Max in Single Turn 1 | . 1 . . . 1 . 1 Garrison Access 1 | . . . . . . 1 . Machines Repaired . | . . . . . . . . Machines Dismantled . | . . . . . . . . Machines Sabotaged . | . . . . . . . . Overloaded Fab Kills . | . . . . . . . . Hacking | -11 -10 -10 -10 -9 -8 -7 -7 --------- Run | Yrd Mat Min Exi Min Mat Fac Sto Machines Accessed 16 | . 2 1 . . 5 5 3 Terminals 11 | . 1 . . . 3 4 3 Fabricators . | . . . . . . . . Repair Stations 2 | . 1 . . . 1 . . Recycling Units . | . . . . . . . . Scanalyzers . | . . . . . . . . Garrison Access 2 | . . . . . 1 1 . Total Hacks 33 | . 8 1 . . 11 10 3 Successful 11 | . 4 1 . . 3 1 2 Failed 22 | . 4 . . . 8 9 1 Catastrophic 4 | . . . . . 1 3 . Database Lockouts . | . . . . . . . . Manual 24 | . 5 . 1 . 9 8 1 Terminals 22 | . 5 . . . 6 8 3 Fabricators . | . . . . . . . . Repair Stations 6 | . 3 . . . 3 . . Recycling Units . | . . . . . . . . Scanalyzers . | . . . . . . . . Garrison Access 4 | . . . . . 2 2 . Terminal Hacks 5 | . 1 1 . . . 1 2 Open Door 3 | . . 1 . . . . 2 Open DSF 1 | . . . . . . 1 . Zone Layout 1 | . 1 . . . . . . Fabricator Hacks . | . . . . . . . . Repair Station Hacks 4 | . 2 . . . 2 . . Scan Component 2 | . 1 . . . 1 . . Repair 2 | . 1 . . . 1 . . Recycling Unit Hacks . | . . . . . . . . Scanalyzer . | . . . . . . . . Garrison Access Hacks . | . . . . . . . . Unauthorized Hacks 2 | . 1 . . . 1 . . Terminals 2 | . 1 . . . 1 . . Assimilate 1 | . . . . . 1 . . Botnet 1 | . 1 . . . . . . Fabricators . | . . . . . . . . Repair Stations . | . . . . . . . . Recycling Units . | . . . . . . . . Scanalyzers . | . . . . . . . . Garrison Access . | . . . . . . . . Data Cores Recovered . | . . . . . . . . Used . | . . . . . . . . Hacking Detections 10 | . 2 . . . 3 4 1 Full Trace Events 4 | . . . . . 3 1 . Feedback Events . | . . . . . . . . Feedback Blocked . | . . . . . . . . Robot Schematics Acquired . | . . . . . . . . Robots Built . | . . . . . . . . Authchips . | . . . . . . . . Time . | . . . . . . . . Total Robot Build Rating . | . . . . . . . . Part Schematics Acquired . | . . . . . . . . Parts Built . | . . . . . . . . Authchips . | . . . . . . . . Time . | . . . . . . . . Total Part Build Rating . | . . . . . . . . Parts Repaired 2 | . 1 . . . 1 . . Time 64 | . 26 . . . 38 . . Parts Recycled . | . . . . . . . . Recycled Matter . | . . . . . . . . Retrieved Matter . | . . . . . . . . Retrieved Components . | . . . . . . . . Parts Scanalyzed . | . . . . . . . . Part Schematics Acquired . | . . . . . . . . Parts Damaged . | . . . . . . . . Bothacking | -11 -10 -10 -10 -9 -8 -7 -7 ------------ Run | Yrd Mat Min Exi Min Mat Fac Sto Used RIF Installer . | . . . . . . . . Robots Hacked 3 | . 1 . . . . 2 . Non-combat 3 | . 1 . . . . 2 . Combat . | . . . . . . . . Robot Hacks Applied 5 | . 3 . . . . 2 . parse_system 2 | . 1 . . . . 1 . no_distress 1 | . 1 . . . . . . find_chute 1 | . . . . . . 1 . check_alert 1 | . 1 . . . . . . Relay Couplers Released 1 | . . . . . . 1 . Machine Destruction 1 | . . . . . . 1 . Fabnet Peak Effective % . | . . . . . . . . Robots Rewired . | . . . . . . . . Allies Hacked . | . . . . . . . . Hacks Repelled . | . . . . . . . . Allies | -11 -10 -10 -10 -9 -8 -7 -7 -------- Run | Yrd Mat Min Exi Min Mat Fac Sto Total Allies 8 | . . 3 . . 5 . . Largest Group 3 | . . 3 . . 2 . . Highest-Rated Group 90 | . . 40 . . 90 . . Highest-Rated Ally 90 | . . 16 . . 90 . . Total Orders 17 | . . . . . 2 15 . STAY 1 | . . . . . . 1 . EXPLORE 2 | . . . . . 2 . . RETURN 14 | . . . . . . 14 . Ally Attacks 240 | . . 9 . . 21 210 . Total Damage 4347 | . . 115 . . 136 4096 . Kills 44 | . . 4 . . 1 39 . Allies Corrupted . | . . . . . . . . Allies Melted . | . . . . . . . . Intel | -11 -10 -10 -10 -9 -8 -7 -7 ------- Run | Yrd Mat Min Exi Min Mat Fac Sto Robot Analysis Total . | . . . . . . . . Derelict Logs Recovered 4 | . . 2 . 2 . . . Drone Launches 185 | . . . . . 17 164 4 Drone Recoveries 155 | . . . . . 17 138 . Exploration | -11 -10 -10 -10 -9 -8 -7 -7 ------------- Run | Yrd Mat Min Exi Min Mat Fac Sto Turns Passed 8655 | 9 729 1254 435 300 2947 2694 287 Spaces Moved 3147 | 7 310 544 224 134 993 824 111 Core 81 | . 1 . . . 80 . . Treads 769 | . . . . . 84 685 . Legs 2093 | . 231 544 224 134 710 139 111 Wheels 204 | 7 78 . . . 119 . . Hover . | . . . . . . . . Flight . | . . . . . . . . Fastest Speed 90 | 90 90 190 190 190 110 235 120 Average Speed 214 | 90 166 190 190 190 216 267 135 Slowest Speed 750 | 90 450 190 190 190 750 610 260 Overloaded Moves . | . . . . . . . . Propulsion Burnouts . | . . . . . . . . Robots Hopped . | . . . . . . . . Cave-ins Triggered 5 | . . . . . 1 4 . Exploration Rate (%) 42 | 2 49 88 42 32 80 27 16 Regions Visited 7 Branch Regions 4 Pre-discovered Areas 2 | . . 2 . . . . . Known Exits Taken . | . . . . . . . . Unknown Exits Taken 7 | 1 1 1 1 1 1 1 . Scrap Searched 3 | . . 2 . 1 . . . Spaces Dug 58 | . 7 . . . 25 26 . Terrain Destroyed 471 | . 60 . . 134 170 95 12 Melee 11 | . . . . . 6 5 . Projectile 11 | . 2 . . . 6 3 . AOE 449 | . 58 . . 134 158 87 12 Terrain Rammed . | . . . . . . . . Walls Destroyed . | . . . . . . . . Machines Disabled . | . . . . . . . . Actions | -11 -10 -10 -10 -9 -8 -7 -7 --------- Run | Yrd Mat Min Exi Min Mat Fac Sto Total 4763 | 8 463 727 236 166 1679 1280 204 Wait 1094 | . 70 137 . 19 505 353 10 Move 3137 | 6 309 543 223 133 991 821 111 Hop . | . . . . . . . . Pick Up 86 | . 18 4 2 . 30 24 8 Fast Attach 30 | . 3 . . . 13 11 3 Attach 58 | . 7 2 4 . 28 7 10 Detach 5 | . 1 1 . . 1 2 . Swap 39 | 2 3 9 1 . 14 5 5 Drop 71 | . 8 10 6 . 15 25 7 Fire 183 | . 40 21 . 14 63 16 29 Melee 24 | . 4 . . . 12 8 . Ram . | . . . . . . . . Kick 9 | . . . . . 5 1 3 Crush 4 | . . . . . 1 3 . Escape Stasis 3 | . . . . . 1 2 . Rewire 18 | . . . . . . . 18 Trap . | . . . . . . . . Miscellaneous 2 | . . . . . . 2 . Route ------- -11/Scrapyard -10/Materials (discovered 2 exits: [*Mat] / *Min) -10/Mines (discovered 3 exits: [*Mat x2] / *Exi) -10/Exiles -9/Mines -8/Materials -7/Factory -7/Storage History --------- Turn | Location | Event 4 | -11/Scrapyard | Discovered new exit (range 3) 10 | -11/Scrapyard | Entered Materials 304 | -10/Materials | Build established: Mutant 403 | -10/Materials | Repaired Lgt. Ion Engine 551 | -10/Materials | Discovered new exit (range 5) 603 | -10/Materials | Discovered new exit (range 15) 739 | -10/Materials | Entered Mines 744 | -10/Mines | Core integrity fell below 50% 795 | -10/Mines | Discovered new exit (range 6) 917 | -10/Mines | Learned location of Zion (-7) 1016 | -10/Mines | Learned Materials emergency access door positions 1046 | -10/Mines | Build established: Scavenger-Mutant 1062 | -10/Mines | Found the Drone Emporium 1071 | -10/Mines | Found Prototype Device 1072 | -10/Mines | Identified Splice Drone Bay 1189 | -10/Mines | Assisted by bots powering up and referring to "LRC-V3" 1380 | -10/Mines | Build established: Mutant 1570 | -10/Mines | Learned location of Storage (-7) 1804 | -10/Mines | Found a hidden stash of uninstalled traps 1913 | -10/Mines | Found a damaged Exp. Sensor Array with a note attached 1919 | -10/Mines | Found Prototype Device 1920 | -10/Mines | Identified Exp. Sensor Array 1940 | -10/Mines | Discovered new exit (range 7) 1986 | -10/Mines | Deemed a non-threat by the Exiles lab entrance 1986 | -10/Mines | Discovered new exit (range 5) 1993 | -10/Mines | Entered Exiles 2040 | -10/Exiles | Met 8R-AWN 2072 | -10/Exiles | Met EX-HEX 2133 | -10/Exiles | Met EX-BIN 2154 | -10/Exiles | Aligned with FarCom system 2156 | -10/Exiles | Given EX-Vault access code 2200 | -10/Exiles | Opened EX-Vault 2218 | -10/Exiles | Found Prototype Device 2263 | -10/Exiles | Warned to stay clear of 0b10 Research branches 2403 | -10/Exiles | Discovered new exit (range 14) 2428 | -10/Exiles | Left Exiles lab with Army-in-a-Box 2428 | -10/Exiles | Entered Mines 2443 | -9/Mines | Received a Rocket Launcher from a helpful Derelict 2493 | -9/Mines | Learned Materials security intel 2507 | -9/Mines | Learned Materials trap positions 2650 | -9/Mines | Discovered new exit (range 15) 2728 | -9/Mines | Entered Materials 2728 | -8/Materials | Evolved 4 slots: Utility x4 2729 | -8/Materials | Loaded intel: 16 trap records 3051 | -8/Materials | Build established: Skirmisher 3448 | -8/Materials | Met 7R-MNS 3527 | -8/Materials | Repaired Carbon-fiber Leg 3774 | -8/Materials | Build established: Scavenger-Assassin 3896 | -8/Materials | Crushed by falling debris 4067 | -8/Materials | Lost 8 parts (1p1n3u3w) 4313 | -8/Materials | Build established: Mutant 4547 | -8/Materials | Lost 4 parts (2n1u1w) 4547 | -8/Materials | Core integrity fell below 50% 4626 | -8/Materials | Core integrity fell below 20% 4629 | -8/Materials | Lost 4 parts (2u2w) 5646 | -8/Materials | Discovered new exit (range 8) 5675 | -8/Materials | Entered Factory 5675 | -7/Factory | Evolved 2 slots: Propulsion x1, Utility x1 5676 | -7/Factory | Caught up to 7R-MNS 5678 | -7/Factory | Identified Army-in-a-Box 6767 | -7/Factory | Garrison activated, responded to threat 7214 | -7/Factory | Garrison activated, responded to threat 7275 | -7/Factory | First assault squad dispatched 7759 | -7/Factory | Crushed by falling debris 7760 | -7/Factory | System corruption reached 10% 7764 | -7/Factory | Crushed by falling debris 7789 | -7/Factory | Crushed by falling debris 7794 | -7/Factory | Crushed by falling debris 7795 | -7/Factory | Lost 3 parts (1n2w) 8158 | -7/Factory | Discovered new exit (range 18) 8258 | -7/Factory | Lost 7 allies 8369 | -7/Factory | Entered Storage 8607 | -7/Storage | Core integrity fell below 50% 8631 | -7/Storage | Garrison activated, responded to threat 8643 | -7/Storage | Core integrity fell below 20% 8656 | -7/Storage | Destroyed by Y-54 Guardian with Gatling Laser Last Messages --------------- 08637_ K-01 Serf collects debris. 08638_ K-01 Serf destroyed. 08639_ Extracted 50 matter. 08639_ Imp. Titanium Leg destroyed. 08643_ Acquired Gauss Rifle. 08644_ Critical hit (Burn: +37). 08646_ Minigun destroyed. 08646_ Imp. Titanium Leg destroyed. 08646_ System Restoration Module destroyed. 08646_ Minigun destroyed. 08648_ G-47 Trooper destroyed. 08648_ Destroyed Com. Wheel. 08648_ R-06 Scavenger destroyed. 08649_ System corrupted: Heat flow error (+173). 08650_ Hvy. Rocket Launcher destroyed. 08650_ Destroyed Hvy. Rocket Launcher. 08650_ Lgt. Deuterium Engine destroyed. 08650_ Destroyed Lgt. Deuterium Engine. 08650_ G-47 Trooper destroyed. 08653_ Slug penetrates Y-54 Guardian. Map ----- +----------------------------------------------------+ | ?????????????????????????????????????????????????? | | ?????????????????????????????????????????????????? | | ?????????????????????????????????????????????????? | | ?????????????????????????????????????????????????? | | ?????????????????????????????????????????????????? | | ?????????????????????????????????????????????????? | | ?????????????????????????????????????????????????? | | ?????????????????????????????????????????????????? | | ?????????????????????????????????????????????????? | | ?????????????????????????????????????????????????? | | ???????????????????????? ???????????????????????? | | ???????????????????????? ???????????????????????? | | ??????????????????????? ???????????????????????? | | ??????????????????????# #??????????????????????? | | ??????????????????????+ /??????????????????????? | | ??????????????????????# #??????????????????????? | | ??????????????????????# #??????????????????????? | | ????????????? ??????# #??????????????????????? | | ????????????? #????## ##?????????????????????? | | ????????????? #???## ######????????????????? | | ????????????# #??## = ?????????????????? | | ????????????# #??# T!%= ??w???????????????? | | ????????????# #???# * ???????????????????? | | ????????????# #???# [%%=#????????????????????? | | ????????????# #??## =%=[ ##???????????????????? | | ????????????# #??# Y@ ###??????????g??????? | | ??????????### #??# [= ""#?????????????????? | | ?????????? # #??# = ""#?????????????????? | | ##????????" # #??# Y"#?????????????????? | | =#????????" # #??# " "" ""#?????????????????? | | =#????????" # #??# """ """ ""#?????????????????? | | =#????????" + #??# """ """ ###?????????????????? | | =#????????" # #??# #???????????????????? | | #????????" # #??#####+#####???????????????????? | | #???????? # #??????# #???????????????????????? | | #??????? # #??????# #???????????????????????? | | ############# ######## ####????????????????????? | | ^ #T###??????????????????? | | + =#??????????????????? | | #####??????????????????? | | "T""#######################??????????????????????? | | """"#????????????????????????????????????????????? | | #####????????????????????????????????????????????? | | | | | | | | | | | | | | | +----------------------------------------------------+ Best States ------------- Heat Dissipation 41 Energy Generation 14 Energy Capacity 275 Matter Stores 300 Matter Capacity 300 Sight Range 16 Robot Scan Range 20 Terrain Scan Range 16 Terrain Scan Density 10 Additional Mass Support 6 Base Temperature (-) 100 Armor Coverage 375 Weapon Shielding 66 Evasion (%) 55 Recoil Reduction 3 Particle Charging 15 Offensive Hacking 10 Defensive Hacking 10 Item Schematics ----------------- None Robot Schematics ------------------ None Fabricated ------------ Nothing Alien Tech Used ----------------- None Achievements -------------- None Challenges ------------ None Game ------ Seed AluminumProtonVibroblade Manual? 0 Play Time 01:00:45 Cumulative 33.5 hours Start 2024.09.09 @ 14:50:28 End 2024.09.09 @ 15:50:56 Sessions 1 Manual Loads 0 Difficulty Rogue Special Mode None Game No. 51 Rogue 51 Adventurer 0 Explorer 0 Win Type - Total 0 Types 0/0/0/0/0/0/0/0/0 Lore% 8 Gallery% 34 Achievement% 27 Wizard Run 0 Options --------- Layout 0 ASCII 0 Keyboard 0 Movement Mouse Keybinds 1 Fullscreen 1 Font 18/TerminusBold Map View 76x50 Zoom Use 0% Tactical HUD 1 Map Filters NONE Filters NONE Steam 1 RUN: a47a4303-eaa8-4643-b915-4b4a3feae83c